Workbook

Sheet Лист1
A1: Школа | C1: МБОУ "Красноярская ООШ" | F1: Утвердил: | G1: должность | H1: Директор
A2: Типовое примерное меню приготавливаемых блюд | G2: фамилия | H2: Глухова Мария Михайловна
A3: Возрастная категория | E3: 7-11 лет | G3: дата | H3: 9 | I3: 1 | J3: 2025
H4: день | I4: месяц | J4: год
A5: Неделя | B5: День недели | C5: Прием пищи | D5: Раздел меню | E5: Блюда | F5: Вес блюда, г | G5: Белки | H5: Жиры | I5: Углеводы | J5: Калорийность | K5: № рецептуры | L5: Цена
A6: 1 | B6: 1 | C6: Завтрак | D6: гор.блюдо | E6: Каша молочная ячневая с изюмом молочная жидкая со слив маслом | F6: 210 | G6: 7.3 | H6: 10.39 | I6: 16.43 | J6: 288.4 | K6: 29
D7: хлеб | E7: Хлеб ржано-пшеничный | F7: 20 | G7: 1.3 | H7: 0.2 | I7: 9 | J7: 41.8 | K7: 376
D8: хлеб | E8: Хлеб пшеничный | F8: 30 | G8: 2.28 | H8: 0.24 | I8: 14.76 | J8: 70.32 | K8: 376
D9: гор.напиток | E9: Чай с сахаром | F9: 200 | G9: 0.021 | H9: 0 | I9: 14.98 | J9: 60 | K9: 28
D10: х-б. изделие | E10: Оладьи со сгущеным молоком | F10: 70 | G10: 0.82 | H10: 3.05 | I10: 8.71 | J10: 180 | K10: 169
L11: 69.43
D12: итого
A13: =A6 -> 1 | B13: =B6 -> 1 | C13: Обед | D13: закуска
D14: 1 блюдо
D15: 2 блюдо
D16: гарнир
D17: напиток
D18: хлеб бел.
D19: хлеб черн.
D22: итого
A23: =A6 -> 1 | B23: =B6 -> 1 | C23: Итого за день: | F23: =SUM(F6:F10) -> 530 | G23: =SUM(G6:G10) -> 11.721 | H23: =SUM(H6:H10) -> 13.88 | I23: =SUM(I6:I10) -> 63.88 | J23: =SUM(J6:J10) -> 640.52 | L23: =SUM(L6:L11) -> 69.43
A24: 1 | B24: 2 | C24: Завтрак | D24: гор.блюдо | E24: Макароны отварные запеченные с сыром | F24: 185 | G24: 6.86 | H24: 6.58 | I24: 30 | J24: 260 | K24: 35
D25: гор.блюдо | E25: Котлета "Нежные" с соусом | F25: 120 | G25: 8.52 | H25: 8.63 | I25: 10.2 | J25: 182 | K25: 33
D26: хлеб | E26: Хлеб ржано-пшеничный | F26: 20 | G26: 1 | H26: 0.2 | I26: 9 | J26: 41.8 | K26: 376
D27: хлеб | E27: Хлеб пшеничный | F27: 30 | G27: 2.28 | H27: 0.24 | I27: 14.76 | J27: 71 | K27: 376
D28: гор.напиток | E28: Напиток из свежих ягод | F28: 200 | G28: 3.97 | H28: 2.1 | I28: 25.17 | J28: 60 | K28: 30
L29: 69.43
D31: итого
A32: =A24 -> 1 | B32: =B24 -> 2 | C32: Обед | D32: закуска
D33: 1 блюдо
D34: 2 блюдо
D35: гарнир
D36: напиток
D37: хлеб бел.
D38: хлеб черн.
D41: итого
A42: =A24 -> 1 | B42: =B24 -> 2 | C42: Итого за день: | F42: =SUM(F24:F30) -> 555 | G42: =SUM(G24:G30) -> 22.63 | H42: =SUM(H24:H30) -> 17.75 | I42: =SUM(I24:I30) -> 89.13 | J42: =SUM(J24:J30) -> 614.8 | L42: =SUM(L24:L30) -> 69.43
A43: 1 | B43: 3 | C43: Завтрак | D43: гор.блюдо | E43: Каша гороховая | F43: 180 | G43: 3.09 | H43: 4.657 | I43: 22.03 | J43: 242 | K43: 20
D44: гор.блюдо | E44: Мясные шарики с рисом с сыром с соусом | F44: 125 | G44: 7.99 | H44: 12.4 | I44: 14.4 | J44: 204 | K44: 6
D45: хлеб | E45: Хлеб ржано-пшеничный | F45: 20 | G45: 1.3 | H45: 0.2 | I45: 9 | J45: 41.8 | K45: 376
D46: хлеб | E46: Хлеб пшеничный | F46: 30 | G46: 2.8 | H46: 0.24 | I46: 14.76 | J46: 71 | K46: 376
D47: гор.напиток | E47: Чай с сахаром с лимоном | F47: 215 | G47: 0.021 | H47: 0.005 | I47: 14.98 | J47: 60 | K47: 28
L48: 69.43
D49: итого
A50: =A43 -> 1 | B50: =B43 -> 3 | C50: Обед | D50: закуска
D51: 1 блюдо
D52: 2 блюдо
D53: гарнир
D54: напиток
D55: хлеб бел.
D56: хлеб черн.
D59: итого
A60: =A43 -> 1 | B60: =B43 -> 3 | C60: Итого за день: | F60: =SUM(F43:F48) -> 570 | G60: =SUM(G43:G48) -> 15.201 | H60: =SUM(H43:H48) -> 17.502 | I60: =SUM(I43:I48) -> 75.17 | J60: =SUM(J43:J48) -> 618.8 | L60: =SUM(L43:L48) -> 69.43
A61: 1 | B61: 4 | C61: Завтрак | D61: гор.блюдо | E61: Гарнир гречневый с овощами | F61: 190 | G61: 5.47 | H61: 6.37 | I61: 34.34 | J61: 204 | K61: 16
D62: гор.блюдо | E62: Котлеты "Курочка ряба" с соусом | F62: 120 | G62: 11 | H62: 10.5 | I62: 9.78 | J62: 180 | K62: 69
D63: хлеб | E63: Хлеб ржано-пшеничный | F63: 20 | G63: 1.3 | H63: 0.2 | I63: 9 | J63: 35 | K63: 376
D64: хлеб | E64: Хлеб пшеничный | F64: 30 | G64: 2.28 | H64: 0.24 | I64: 14.76 | J64: 71 | K64: 376
D65: гор.напиток | E65: Напиток из свежих ягод | F65: 200 | G65: 3.97 | H65: 2.1 | I65: 25.17 | J65: 135.45 | K65: 30
L66: 69.43
D67: итого
A68: =A61 -> 1 | B68: =B61 -> 4 | C68: Обед | D68: закуска
D69: 1 блюдо
D70: 2 блюдо
D71: гарнир
D72: напиток
D73: хлеб бел.
D74: хлеб черн.
D77: итого
A78: =A61 -> 1 | B78: =B61 -> 4 | C78: Итого за день: | F78: =SUM(F61:F65) -> 560 | G78: =SUM(G61:G65) -> 24.02 | H78: =SUM(H61:H65) -> 19.41 | I78: =SUM(I61:I65) -> 93.05 | J78: =SUM(J61:J65) -> 625.45 | L78: =SUM(L61:L66) -> 69.43
A79: 1 | B79: 5 | C79: Завтрак | D79: гор.блюдо | E79: Картофельное пюре | F79: 180 | G79: 3.834 | H79: 5.42 | I79: 41.6 | J79: 210 | K79: 25
D80: гор.блюдо | E80: Тефтели рыбные "Океан" с соусом | F80: 120 | G80: 8.52 | H80: 8.63 | I80: 10.2 | J80: 182.88 | K80: 34
D81: хлеб | E81: Хлеб ржано-пшеничный | F81: 20 | G81: 1.3 | H81: 0.2 | I81: 9 | J81: 35 | K81: 376
D82: хлеб | E82: Хлеб пшеничный | F82: 30 | G82: 2.28 | H82: 0.24 | I82: 14.76 | J82: 71 | K82: 376
D83: гор.напиток | E83: Напиток из сухофруктов | F83: 200 | G83: 3.97 | H83: 2.1 | I83: 25.17 | J83: 135.45 | K83: 23
D84: овощи | E84: Огурец соленый | F84: 60 | G84: 0.8 | H84: 0.1 | I84: 1.7 | J84: 13.7
D85: итого | L85: 69.43
A86: =A79 -> 1 | B86: =B79 -> 5 | C86: Обед | D86: закуска
D87: 1 блюдо
D88: 2 блюдо
D89: гарнир
D90: напиток
D91: хлеб бел.
D92: хлеб черн.
D95: итого
A96: =A79 -> 1 | B96: =B79 -> 5 | C96: Итого за день: | F96: =SUM(F79:F84) -> 610 | G96: =SUM(G79:G84) -> 20.704 | H96: =SUM(H79:H84) -> 16.69 | I96: =SUM(I79:I84) -> 102.43 | J96: =SUM(J79:J84) -> 648.03 | L96: =SUM(L79:L84) -> 0
A97: 2 | B97: 1 | C97: Завтрак | D97: гор.блюдо | E97: Каша геркулесовая с курагой молочная жидкая со слив маслом | F97: 210 | G97: 7.3 | H97: 10.39 | I97: 16.43 | J97: 388.4 | K97: 29
D98: хлеб | E98: Хлеб ржано-пшеничный | F98: 20 | G98: 1.3 | H98: 0.2 | I98: 9 | J98: 35 | K98: 376
D99: хлеб | E99: Хлеб пшеничный | F99: 30 | G99: 2.28 | H99: 0.24 | I99: 14.76 | J99: 71 | K99: 376
D100: гор.напиток | E100: Чай с сахаром | F100: 210 | G100: 0.021 | H100: 0.005 | I100: 14.98 | J100: 60 | K100: 28
D101: х-б. изделие | E101: Ватрушка с повидлом | F101: 50 | G101: 0.82 | H101: 3.05 | I101: 8.71 | J101: 120 | K101: 7
L102: 69.43
D103: итого
A104: =A97 -> 2 | B104: =B97 -> 1 | C104: Обед | D104: закуска
D105: 1 блюдо
D106: 2 блюдо
D107: гарнир
D108: напиток
D109: хлеб бел.
D110: хлеб черн.
D113: итого
A114: =A97 -> 2 | B114: =B97 -> 1 | C114: Итого за день: | F114: =SUM(F97:F101) -> 520 | G114: =SUM(G97:G101) -> 11.721 | H114: =SUM(H97:H101) -> 13.885 | I114: =SUM(I97:I101) -> 63.88 | J114: =SUM(J97:J101) -> 674.4 | L114: =SUM(L97:L102) -> 69.43
A115: 2 | B115: 2 | C115: Завтрак | D115: гор.блюдо | E115: Пельмени с бульоном со сметаной | F115: 250 | G115: 8.86 | H115: 10.85 | I115: 30 | J115: 406.6 | K115: 124
D116: хлеб | E116: Хлеб ржано-пшеничный | F116: 20 | G116: 1.3 | H116: 0.2 | I116: 9 | J116: 35 | K116: 376
D117: хлеб | E117: Хлеб пшеничный | F117: 30 | G117: 2.28 | H117: 0.24 | I117: 14.76 | J117: 71 | K117: 376
D118: гор.напиток | E118: Чай с сахаром | F118: 210 | G118: 0.021 | H118: 0.005 | I118: 14.98 | J118: 60 | K118: 28
L119: 69.43
D121: итого
A122: =A115 -> 2 | B122: =B115 -> 2 | C122: Обед | D122: закуска
D123: 1 блюдо
D124: 2 блюдо
D125: гарнир
D126: напиток
D127: хлеб бел.
D128: хлеб черн.
D131: итого
A132: =A115 -> 2 | B132: =B115 -> 2 | C132: Итого за день: | F132: =SUM(F115:F120) -> 510 | G132: =SUM(G115:G120) -> 12.461 | H132: =SUM(H115:H120) -> 11.295 | I132: =SUM(I115:I120) -> 68.74 | J132: =SUM(J115:J120) -> 572.6 | L132: =SUM(L115:L120) -> 69.43
A133: 2 | B133: 3 | C133: Завтрак | D133: гор.блюдо | E133: Гарнир гречневый с овощами | F133: 190 | G133: 3.834 | H133: 5.42 | I133: 41.6 | J133: 230.52 | K133: 16
D134: гор.блюдо | E134: Котлета "Студенческая" с соусом кр осн | F134: 120 | G134: 8.52 | H134: 8.63 | I134: 10.2 | J134: 182.88 | K134: 33
D135: хлеб | E135: Хлеб ржано-пшеничный | F135: 20 | G135: 1.3 | H135: 0.2 | I135: 9 | J135: 35 | K135: 376
D136: хлеб | E136: Хлеб пшеничный | F136: 30 | G136: 2.28 | H136: 0.24 | I136: 14.76 | J136: 71 | K136: 376
D137: гор.напиток | E137: Компот с сухофруктами | F137: 200 | G137: 1.6 | H137: 1.65 | I137: 15.36 | J137: 82.69 | K137: 23
D138: овощи | E138: свекла отварная | F138: 60 | G138: 2.27 | H138: 0.15 | I138: 13.29 | J138: 60.4 | K138: 5
D139: итого | L139: 69.43
A140: =A133 -> 2 | B140: =B133 -> 3 | C140: Обед | D140: закуска
D141: 1 блюдо
D142: 2 блюдо
D143: гарнир
D144: напиток
D145: хлеб бел.
D146: хлеб черн.
D149: итого
A150: =A133 -> 2 | B150: =B133 -> 3 | C150: Итого за день: | F150: =SUM(F133:F138) -> 620 | G150: =SUM(G133:G138) -> 19.804 | H150: =SUM(H133:H138) -> 16.29 | I150: =SUM(I133:I138) -> 104.21 | J150: =SUM(J133:J138) -> 662.49 | L150: =SUM(L133:L138) -> 0
A151: 2 | B151: 4 | C151: Завтрак | D151: гор.блюдо | E151: Макароны отварные | F151: 180 | G151: 3.09 | H151: 4.657 | I151: 22.03 | J151: 206.66 | K151: 35
D152: гор.блюдо | E152: Гречневые биточки с рубленной курицей с соусом | F152: 120 | G152: 7.99 | H152: 12.4 | I152: 14.4 | J152: 204 | K152: 33
D153: хлеб | E153: Хлеб ржано-пшеничный | F153: 20 | G153: 1.3 | H153: 0.2 | I153: 9 | J153: 35 | K153: 376
D154: хлеб | E154: Хлеб пшеничный | F154: 30 | G154: 2.28 | H154: 0.24 | I154: 14.76 | J154: 71 | K154: 376
D155: гор.напиток | E155: Напиток из свежих ягод | F155: 200 | G155: 3.97 | H155: 2.1 | I155: 25.17 | J155: 135.45 | K155: 30
L156: 69.43
D157: итого
A158: =A151 -> 2 | B158: =B151 -> 4 | C158: Обед | D158: закуска
D159: 1 блюдо
D160: 2 блюдо
D161: гарнир
D162: напиток
D163: хлеб бел.
D164: хлеб черн.
D167: итого
A168: =A151 -> 2 | B168: =B151 -> 4 | C168: Итого за день: | F168: =SUM(F152:F155) -> 370 | G168: =SUM(G152:G155) -> 15.54 | H168: =SUM(H152:H155) -> 14.94 | I168: =SUM(I152:I155) -> 63.33 | J168: =SUM(J152:J155) -> 445.45 | L168: =SUM(L156) -> 69.43
A169: 2 | B169: 5 | C169: Завтрак | D169: гор.блюдо | E169: Вареники с творогом со сметаной | F169: 220 | G169: 5.47 | H169: 6.37 | I169: 18.98 | J169: 295.5 | K169: 124
D170: хлеб | E170: Хлеб пшеничный | F170: 30 | G170: 2.28 | H170: 0.24 | I170: 14.76 | J170: 71 | K170: 376
D171: гор.напиток | E171: Напиток шиповника | F171: 200 | G171: 1.6 | H171: 1.65 | I171: 15.36 | J171: 82.69 | K171: 23
D172: х-б. изделие | E172: Картофельная ватрушка | F172: 50 | G172: 6.2 | H172: 13.7 | I172: 27.34 | J172: 203 | K172: 7
L173: 69.43
D174: итого
A175: =A169 -> 2 | B175: =B169 -> 5 | C175: Обед | D175: закуска
D176: 1 блюдо
D177: 2 блюдо
D178: гарнир
D179: напиток
D180: хлеб бел.
D181: хлеб черн.
D184: итого | F184: =SUM(F175:F183) -> 0 | G184: =SUM(G175:G183) -> 0 | H184: 0 | I184: 0 | J184: 0 | L184: =SUM(L175:L183) -> 0
A185: =A169 -> 2 | B185: =B169 -> 5 | C185: Итого за день: | F185: =SUM(F169:F173) -> 500 | G185: =SUM(G169:G173) -> 15.55 | H185: =SUM(H169:H173) -> 21.96 | I185: =SUM(I169:I173) -> 76.44 | J185: =SUM(J169:J173) -> 652.19 | L185: =SUM(L169:L173) -> 69.43
C186: Среднее значение за период: | F186: =(F23+F42+F60+F78+F96+F114+F132+F150+F168+F185)/(IF(F23=0,0,1)+IF(F42=0,0,1)+IF(F60=0,0,1)+IF(F78=0,0,1)+IF(F96=0,0,1)+IF(F114=0,0,1)+IF(F132=0,0,1)+IF(F150=0,0,1)+IF(F168=0,0,1)+IF(F185=0,0,1)) -> 534.5 | G186: =(G23+G42+G60+G78+G96+G114+G132+G150+G168+G185)/(IF(G23=0,0,1)+IF(G42=0,0,1)+IF(G60=0,0,1)+IF(G78=0,0,1)+IF(G96=0,0,1)+IF(G114=0,0,1)+IF(G132=0,0,1)+IF(G150=0,0,1)+IF(G168=0,0,1)+IF(G185=0,0,1)) -> 16.9352 | H186: =(H23+H42+H60+H78+H96+H114+H132+H150+H168+H185)/(IF(H23=0,0,1)+IF(H42=0,0,1)+IF(H60=0,0,1)+IF(H78=0,0,1)+IF(H96=0,0,1)+IF(H114=0,0,1)+IF(H132=0,0,1)+IF(H150=0,0,1)+IF(H168=0,0,1)+IF(H185=0,0,1)) -> 16.3602 | I186: =(I23+I42+I60+I78+I96+I114+I132+I150+I168+I185)/(IF(I23=0,0,1)+IF(I42=0,0,1)+IF(I60=0,0,1)+IF(I78=0,0,1)+IF(I96=0,0,1)+IF(I114=0,0,1)+IF(I132=0,0,1)+IF(I150=0,0,1)+IF(I168=0,0,1)+IF(I185=0,0,1)) -> 80.026 | J186: =(J23+J42+J60+J78+J96+J114+J132+J150+J168+J185)/(IF(J23=0,0,1)+IF(J42=0,0,1)+IF(J60=0,0,1)+IF(J78=0,0,1)+IF(J96=0,0,1)+IF(J114=0,0,1)+IF(J132=0,0,1)+IF(J150=0,0,1)+IF(J168=0,0,1)+IF(J185=0,0,1)) -> 615.473 | L186: =(L23+L42+L60+L78+L96+L114+L132+L150+L168+L185)/(IF(L23=0,0,1)+IF(L42=0,0,1)+IF(L60=0,0,1)+IF(L78=0,0,1)+IF(L96=0,0,1)+IF(L114=0,0,1)+IF(L132=0,0,1)+IF(L150=0,0,1)+IF(L168=0,0,1)+IF(L185=0,0,1)) -> 69.43
